fUSD/lending_fUSD_20250419
["ID","MTS","AMOUNT","RATE_DAILY","PERIOD"]
[358413447,1745097504623,-500.0,0.00054794,120]
[358413448,1745097504648,-561.0,0.00054794,120]
[358413449,1745097504674,-500.0,0.00054794,120]
[358413450,1745097504700,-500.0,0.00054794,120]
[358413451,1745097504726,-500.0,0.00054794,120]
[358413452,1745097504753,-500.0,0.00054794,120]
[358413453,1745097504780,-500.0,0.00054794,120]
[358413454,1745097504805,-500.0,0.00054794,120]
[358413455,1745097504832,-500.0,0.00054794,120]
[358413456,1745097504859,-598.65153227,0.00054794,120]
[358413457,1745097504889,-500.0,0.00054794,120]
[358413458,1745097504916,-500.0,0.00054794,120]
[358413459,1745097504942,-500.0,0.00054794,120]
[358413460,1745097504969,-527.51749309,0.00054794,120]
[358413461,1745097504996,-500.0,0.00054794,120]
[358413462,1745097505023,-510.7723239,0.00054794,120]
[358413463,1745097505051,-185.7599554,0.00054794,120]
[358413464,1745097505081,-500.0,0.00054794,120]
[358413465,1745097505108,-503.95,0.00054794,120]
[358413466,1745097505134,-536.81471484,0.00054794,120]
[358413467,1745097505161,-500.0,0.00054794,120]
[358413468,1745097505188,-500.0,0.00054794,120]
[358413469,1745097505214,-500.0,0.00054794,120]
[358413470,1745097505241,-168.577633,0.00054794,120]
[358413471,1745097505266,-500.0,0.00054794,120]
[358413472,1745097505293,-500.0,0.00054794,120]
[358413473,1745097505318,-500.0,0.00054794,120]
[358413474,1745097505344,-535.94,0.00054794,120]
[358413475,1745097505370,-520.19336925,0.00054794,120]
[358413476,1745097505397,-575.17,0.00054794,120]
[358413477,1745097505424,-500.0,0.00054794,120]
[358413478,1745097505451,-124600.3,0.00054794,120]
[358413479,1745097505476,-497.80598248,0.00054794,120]
[358413480,1745097505503,-500.0,0.00054794,120]
[358413481,1745097505529,-500.0,0.00054794,120]
[358413482,1745097505555,-500.0,0.00054794,120]
[358413483,1745097505582,-500.0,0.00054794,120]
[358413484,1745097505609,-500.0,0.00054794,120]
[358413485,1745097505634,-500.0,0.00054794,120]
[358413486,1745097505659,-500.0,0.00054794,120]
[358413487,1745097505685,-523.54605767,0.00054794,120]
[358413488,1745097505725,-500.0,0.00054794,120]
[358413489,1745097505753,-562.36570161,0.00054794,120]
[358413490,1745097505780,-532.36583336,0.00054794,120]
[358413491,1745097505806,-500.0,0.00054794,120]
[358413492,1745097505833,-500.0,0.00054794,120]
[358413493,1745097505861,-500.0,0.00054794,120]
[358413494,1745097505889,-500.0,0.00054794,120]
[358413495,1745097505916,-516.6668102,0.00054794,120]
[358413496,1745097505945,-1336.23,0.00054794,120]
[358413497,1745097505973,-500.0,0.00054794,120]
[358413498,1745097506001,-500.0,0.00054794,120]
[358413499,1745097506027,-500.0,0.00054794,120]
[358413500,1745097506053,-500.0,0.00054794,120]
[358413501,1745097506080,-500.0,0.00054794,120]
[358413502,1745097506107,-500.0,0.00054794,120]
[358413503,1745097506133,-500.0,0.00054794,120]
[358413504,1745097506160,-500.0,0.00054794,120]
[358413505,1745097506186,-500.0,0.00054794,120]
[358413506,1745097506212,-500.0,0.00054794,120]
[358413507,1745097506244,-500.0,0.00054794,118]
[358413508,1745097506272,-500.0,0.00054794,120]
[358413509,1745097506300,-494.0,0.00054794,120]
[358413510,1745097506328,-500.0,0.00054794,120]
[358413511,1745097506355,-500.0,0.00054794,120]
[358413512,1745097506383,-663.86,0.00054794,120]
[358413513,1745097506409,-500.0,0.00054794,120]
[358413514,1745097506436,-500.0,0.00054794,120]
[358413515,1745097506634,-500.0,0.00054794,120]
[358413516,1745097506665,-518.83109342,0.00054794,120]
[358413517,1745097506691,-500.0,0.00054794,120]
[358413518,1745097506718,-509.68802786,0.00054794,120]
[358413519,1745097506743,-500.0,0.00054794,120]
[358413520,1745097506769,-500.0,0.00054794,120]
[358413521,1745097506796,-500.0,0.00054794,120]
[358413522,1745097506823,-500.0,0.00054794,120]
[358413523,1745097506849,-500.0,0.00054794,120]
[358413524,1745097506877,-500.0,0.00054794,120]
[358413525,1745097506903,-502.68000766,0.00054794,120]
[358413526,1745097506929,-519.70300243,0.00054794,120]
[358413527,1745097506957,-500.0,0.00054794,120]
[358413528,1745097506984,-520.91,0.00054794,120]
[358413529,1745097507009,-500.0,0.00054794,120]
[358413530,1745097507035,-500.0,0.00054794,120]
[358413531,1745097507060,-500.0,0.00054794,120]
[358413532,1745097507086,-500.0,0.00054794,120]
[358413533,1745097507112,-500.0,0.00054794,120]
[358413534,1745097507138,-513.39991906,0.00054794,120]
[358413535,1745097507165,-500.0,0.00054794,120]
[358413536,1745097507195,-500.0,0.00054794,120]
[358413537,1745097507221,-538.10733092,0.00054794,120]
[358413538,1745097507249,-500.0,0.00054794,120]
[358413539,1745097507277,-500.0,0.00054794,120]
[358413540,1745097507305,-528.07596393,0.00054794,120]
[358413541,1745097507331,-435.54287045,0.00054794,120]
[358413542,1745097507357,-525.70510572,0.00054794,120]
[358413543,1745097507384,-529.47543429,0.00054794,120]
[358413544,1745097507412,-903.34,0.00054794,120]
[358413545,1745097507445,-500.0,0.00054794,120]
[358413546,1745097507474,-500.0,0.00054794,120]
[358413547,1745097507501,-804.09,0.00054794,120]
[358413548,1745097507528,-500.0,0.00054794,120]
[358413549,1745097507555,-539.19275302,0.00054794,120]
[358413550,1745097507583,-500.0,0.00054794,120]
[358413551,1745097507611,-552.89425665,0.00054794,120]
[358413552,1745097507637,-519.58080166,0.00054794,120]
[358413553,1745097507663,-500.0,0.00054794,120]
[358413554,1745097507690,-500.0,0.00054794,120]
[358413555,1745097507716,-521.94159609,0.00054794,120]
[358413556,1745097507741,-519.8090452,0.00054794,120]
[358413557,1745097507767,-500.0,0.00054794,120]
[358413558,1745097507793,-500.0,0.00054794,120]
[358413559,1745097507818,-532.91146,0.00054794,120]
[358413560,1745097507842,-518.06995691,0.00054794,120]
[358413561,1745097507868,-559.9403962,0.00054794,120]
[358413562,1745097507892,-542.79851551,0.00054794,120]
[358413563,1745097507917,-500.0,0.00054794,120]
[358413564,1745097507945,-519.05635632,0.00054794,120]
[358413565,1745097507971,-500.0,0.00054794,120]
[358413566,1745097508007,-500.0,0.00054794,120]
[358413567,1745097508047,-523.5080192,0.00054794,120]
[358413568,1745097508083,-524.77800752,0.00054794,120]
[358413569,1745097508115,-500.0,0.00054794,120]
[358413570,1745097508146,-531.90744577,0.00054794,120]
[358413571,1745097508178,-500.0,0.00054794,120]
[358413572,1745097508210,-532.63318379,0.00054794,120]
[358413573,1745097508242,-515.36091725,0.00054794,120]
[358413574,1745097508274,-500.0,0.00054794,120]
[358413575,1745097508308,-500.0,0.00054794,120]
[358413576,1745097508343,-500.0,0.00054794,120]
[358413577,1745097508377,-500.0,0.00054794,120]
[358413578,1745097508411,-506.5324223,0.00054794,120]
[358413579,1745097508445,-500.0,0.00054794,120]
[358413580,1745097508482,-550.56,0.00054794,120]
[358413581,1745097508515,-519.27456384,0.00054794,120]
[358413582,1745097508550,-500.0,0.00054794,120]
[358413583,1745097508584,-500.0,0.00054794,120]
[358413584,1745097508619,-567.90279697,0.00054794,120]
[358413585,1745097508652,-500.0,0.00054794,120]
[358413586,1745097508684,-512.87629573,0.00054794,120]
[358413587,1745097508814,-563.09215393,0.00054794,120]
[358413588,1745097508875,-500.0,0.00054794,120]
[358413589,1745097508911,-995.75,0.00054794,120]
[358413590,1745097508948,-1403.2,0.00054794,120]
[358413591,1745097508983,-536.58177922,0.00054794,120]
[358413592,1745097509018,-500.0,0.00054794,120]
[358413593,1745097509053,-500.0,0.00054794,120]
[358413594,1745097509089,-500.0,0.00054794,120]
[358413595,1745097509123,-336.48371118,0.00054794,120]
[358413596,1745097509158,-500.0,0.00054794,120]
[358413597,1745097509193,-500.0,0.00054794,120]
[358413598,1745097509228,-500.0,0.00054794,120]
[358413599,1745097509262,-500.0,0.00054794,120]
[358413600,1745097509297,-541.34023215,0.00054794,120]
[358413601,1745097509331,-500.0,0.00054794,120]
[358413602,1745097509367,-573.24763905,0.00054794,120]
[358413603,1745097509401,-500.0,0.00054794,120]
[358413604,1745097509436,-500.0,0.00054794,120]
[358413605,1745097509471,-538.30476529,0.00054794,120]
[358413606,1745097509504,-518.02521758,0.00054794,120]
[358413607,1745097509538,-533.13001782,0.00054794,120]
[358413608,1745097509571,-500.0,0.00054794,120]
[358413609,1745097509604,-500.0,0.00054794,120]
[358413610,1745097509637,-536.81083873,0.00054794,120]
[358413611,1745097509670,-300.0,0.00054794,120]
[358413612,1745097509705,-500.0,0.00054794,120]
[358413613,1745097509737,-3441.69,0.00054794,120]
[358413614,1745097509769,-520.09835096,0.00054794,120]
[358413615,1745097509803,-155.207611,0.00054794,120]
[358413616,1745097509838,-500.0,0.00054794,120]
[358413617,1745097509875,-500.0,0.00054794,120]
[358413618,1745097509907,-500.0,0.00054794,120]
[358413619,1745097509942,-500.0,0.00054794,120]
[358413620,1745097509976,-500.0,0.00054794,120]
[358413621,1745097510011,-500.0,0.00054794,120]
[358413622,1745097510044,-502.0708214,0.00054794,120]
[358413623,1745097510080,-901.02,0.00054794,120]
[358413624,1745097510114,-500.0,0.00054794,120]
[358413625,1745097510148,-500.0,0.00054794,120]
[358413626,1745097510181,-160.584376,0.00054794,120]
[358413627,1745097510215,-500.0,0.00054794,120]
[358413628,1745097510250,-500.0,0.00054794,120]
[358413629,1745097510283,-500.0,0.00054794,120]
[358413630,1745097510316,-500.0,0.00054794,120]
[358413631,1745097510349,-500.0,0.00054794,120]
[358413632,1745097510383,-510.83081517,0.00054794,120]
[358413633,1745097510417,-500.0,0.00054794,120]
[358413634,1745097510451,-500.0,0.00054794,120]
[358413635,1745097510484,-500.0,0.00054794,120]
[358413636,1745097510517,-389.090429,0.00054794,120]
[358413637,1745097510549,-510.75297917,0.00054794,120]
[358413638,1745097510581,-500.0,0.00054794,120]
[358413639,1745097510614,-1197.0,0.00054794,120]
[358413640,1745097510646,-500.0,0.00054794,120]
[358413641,1745097510679,-500.0,0.00054794,120]
[358413642,1745097510713,-500.0,0.00054794,120]
[358413643,1745097510748,-500.0,0.00054794,120]
[358413644,1745097510780,-500.0,0.00054794,120]
[358413645,1745097510814,-1692.0,0.00054794,120]
[358413646,1745097510846,-1692.0,0.00054794,120]
[358413647,1745097510878,-1692.0,0.00054794,120]
[358413648,1745097510911,-1692.0,0.00054794,120]
[358413649,1745097510944,-1692.0,0.00054794,120]
[358413650,1745097510977,-1692.0,0.00054794,120]
[358413651,1745097511010,-1692.0,0.00054794,120]
[358413652,1745097511042,-1064.41,0.00054794,120]
[358413653,1745097511075,-1692.0,0.00054794,120]
[358413654,1745097511111,-1692.0,0.00054794,120]
[358413655,1745097511145,-1692.0,0.00054794,120]
[358413656,1745097511179,-500.0,0.00054794,120]
[358413657,1745097511214,-1692.0,0.00054794,120]
[358413658,1745097511365,-1692.0,0.00054794,120]
[358413659,1745097511402,-1692.0,0.00054794,120]
[358413660,1745097511439,-1692.0,0.00054794,120]
[358413661,1745097511481,-1692.0,0.00054794,120]
[358413662,1745097511522,-500.0,0.00054794,120]
[358413663,1745097511563,-1692.0,0.00054794,120]
[358413664,1745097511607,-1692.0,0.00054794,120]
[358413665,1745097511645,-1692.0,0.00054794,120]
[358413666,1745097511684,-1692.0,0.00054794,120]
[358413667,1745097511722,-1692.0,0.00054794,120]
[358413668,1745097511758,-500.0,0.00054794,120]
[358413669,1745097511795,-1692.0,0.00054794,120]
[358413670,1745097511830,-1692.0,0.00054794,120]
[358413671,1745097511870,-1692.0,0.00054794,120]
[358413672,1745097511905,-1692.13400343,0.00054794,120]
[358413673,1745097511939,-413.46785301,0.00054794,120]
[358413674,1745097511974,-500.0,0.00054794,120]
[358413675,1745097512008,-500.0,0.00054794,120]
[358413676,1745097512040,-500.0,0.00054794,120]
[358413677,1745097512076,-1230.49,0.00054794,120]
[358413678,1745097512110,-531.09686255,0.00054794,120]
[358413679,1745097512143,-500.0,0.00054794,120]
[358413680,1745097512177,-500.0,0.00054794,120]
[358413681,1745097512211,-500.0,0.00054794,120]
[358413682,1745097512244,-500.0,0.00054794,120]
[358413683,1745097512278,-250.0,0.00054794,120]
[358413684,1745097512312,-519.45151246,0.00054794,120]
[358413685,1745097512345,-500.0,0.00054794,120]
[358413686,1745097512378,-177.88170685,0.00054794,120]
[358413687,1745097512412,-636.81,0.00054794,120]
[358413688,1745097512447,-762.569164,0.00054794,120]
[358413689,1745097512482,-500.0,0.00054794,120]
[358413690,1745097512517,-514.00275325,0.00054794,120]
[358413691,1745097512553,-550.32837371,0.00054794,120]
[358413692,1745097512588,-500.0,0.00054794,120]
[358413693,1745097512621,-500.0,0.00054794,120]
[358413694,1745097512653,-509.98741213,0.00054794,120]
[358413695,1745097512686,-514.42718427,0.00054794,120]
[358413696,1745097512721,-500.0,0.00054794,120]
[358413697,1745097512755,-500.0,0.00054794,120]
[358413698,1745097512791,-500.0,0.00054794,120]
[358413699,1745097512825,-500.0,0.00054794,120]
[358413700,1745097512860,-500.0,0.00054794,120]
[358413701,1745097512900,-500.0,0.00054794,120]
[358413702,1745097512935,-1692.75,0.00054794,120]
[358413703,1745097512971,-398.88595494,0.00054794,120]
[358413704,1745097513005,-507.57989669,0.00054794,120]
[358413705,1745097513038,-500.0,0.00054794,120]
[358413706,1745097513070,-605.70989805,0.00054794,120]
[358413707,1745097513104,-500.0,0.00054794,120]
[358413708,1745097513138,-500.0,0.00054794,120]
[358413709,1745097513174,-500.0,0.00054794,120]
[358413710,1745097513216,-500.0,0.00054794,120]
[358413711,1745097513252,-490.0609255,0.00054794,120]
[358413712,1745097513291,-550.60955792,0.00054794,120]
[358413713,1745097513330,-500.0,0.00054794,120]
[358413714,1745097513365,-500.0,0.00054794,120]
[358413715,1745097513400,-500.0,0.00054794,120]
[358413716,1745097513435,-520.39200212,0.00054794,120]
[358413717,1745097513471,-500.0,0.00054794,120]
[358413718,1745097513507,-500.0,0.00054794,120]
[358413719,1745097513543,-546.21124389,0.00054794,120]
[358413720,1745097513579,-500.0,0.00054794,120]
[358413721,1745097513614,-500.0,0.00054794,120]
[358413722,1745097513649,-500.0,0.00054794,120]
[358413723,1745097513688,-748.49,0.00054794,120]
[358413724,1745097513725,-537.72386299,0.00054794,120]
[358413725,1745097513865,-500.0,0.00054794,120]
[358413726,1745097513907,-500.0,0.00054794,120]
[358413727,1745097513944,-500.0,0.00054794,120]
[358413728,1745097513980,-500.0,0.00054794,120]
[358413729,1745097514016,-500.0,0.00054794,120]
[358413730,1745097514051,-1000.0,0.00054794,35]
[358413731,1745097514088,-500.0,0.00054794,120]
[358413732,1745097514124,-500.0,0.00054794,120]
[358413733,1745097514159,-500.0,0.00054794,120]
[358413734,1745097514195,-500.0,0.00054794,120]
[358413735,1745097514231,-500.0,0.00054794,120]
[358413736,1745097514267,-500.0,0.00054794,120]
[358413737,1745097514304,-500.0,0.00054794,120]
[358413738,1745097514340,-528.86698942,0.00054794,120]
[358413739,1745097514375,-500.0,0.00054794,120]
[358413740,1745097514413,-500.0,0.00054794,120]
[358413741,1745097514450,-500.0,0.00054794,120]
[358413742,1745097514488,-568.52,0.00054794,120]
[358413743,1745097514522,-500.0,0.00054794,120]
[358413744,1745097514555,-500.0,0.00054794,120]
[358413745,1745097514590,-500.0,0.00054794,120]
[358413746,1745097514624,-4499.585134,0.00054794,120]
[358413747,1745097514661,-500.0,0.00054794,120]
[358413748,1745097514698,-500.0,0.00054794,120]
[358413749,1745097514734,-500.0,0.00054794,120]
[358413750,1745097514770,-500.0,0.00054794,120]
[358413751,1745097514805,-500.0,0.00054794,120]
[358413752,1745097514839,-500.0,0.00054794,120]
[358413753,1745097514876,-500.0,0.00054794,120]
[358413754,1745097514911,-500.0,0.00054794,120]
[358413755,1745097514946,-500.0,0.00054794,120]
[358413756,1745097514982,-544.47211058,0.00054794,120]
[358413757,1745097515019,-500.0,0.00054794,120]
[358413758,1745097515054,-500.0,0.00054794,120]
[358413759,1745097515090,-500.0,0.00054794,120]
[358413760,1745097515124,-1290.74,0.00054794,120]
[358413761,1745097515160,-513.48749895,0.00054794,120]
[358413762,1745097515195,-500.0,0.00054794,120]
[358413763,1745097515231,-500.0,0.00054794,120]
[358413764,1745097515267,-500.0,0.00054794,120]
[358413765,1745097515302,-500.0,0.00054794,120]
[358413766,1745097515337,-500.0,0.00054794,120]
[358413767,1745097515370,-500.0,0.00054794,120]
[358413768,1745097515405,-500.0,0.00054794,120]
[358413769,1745097515440,-203.89228025,0.00054794,120]
[358413770,1745097515476,-500.0,0.00054794,120]
[358413771,1745097515511,-500.0,0.00054794,120]
[358413772,1745097515545,-500.0,0.00054794,120]
[358413773,1745097515579,-500.0,0.00054794,120]
[358413774,1745097515615,-500.0,0.00054794,120]
[358413775,1745097515649,-500.0,0.00054794,120]
[358413776,1745097515683,-1172.86,0.00054794,120]
[358413777,1745097515718,-500.0,0.00054794,120]
[358413778,1745097515751,-500.0,0.00054794,120]
[358413779,1745097515784,-500.0,0.00054794,120]
[358413780,1745097515817,-509.34362167,0.00054794,120]
[358413781,1745097515850,-500.0,0.00054794,120]
[358413782,1745097515886,-499.40560064,0.00054794,120]
[358413783,1745097515919,-500.0,0.00054794,120]
[358413784,1745097515953,-500.0,0.00054794,120]
[358413785,1745097515986,-500.0,0.00054794,120]
[358413786,1745097516019,-500.0,0.00054794,120]
[358413787,1745097516053,-500.0,0.00054794,120]
[358413788,1745097516088,-500.0,0.00054794,120]
[358413789,1745097516124,-500.0,0.00054794,120]
[358413790,1745097516159,-2162.2,0.00054794,120]
[358413791,1745097516317,-606.42481453,0.00054794,120]
[358413792,1745097516354,-200.0,0.00054795,120]
[358413793,1745097516391,-151.0,0.00054795,120]
[358413794,1745097516425,-151.0,0.00054795,120]
[358413795,1745097516461,-151.0,0.00054795,120]
[358413796,1745097516496,-151.0,0.00054795,120]
[358413797,1745097516530,-209.202458,0.00054795,120]
[358413798,1745097516565,-175.16252459,0.00054795,120]
[358413799,1745097516601,-500.0,0.00054795,120]
[358413800,1745097516640,-500.0,0.00054795,120]
[358413801,1745097516674,-150.0,0.00054795,120]
[358413802,1745097516709,-150.0,0.00054795,120]
[358413803,1745097516743,-352.58779688,0.00054795,120]
[358413804,1745097516776,-150.0,0.00054795,120]
[358413805,1745097516810,-150.0,0.00054795,120]
[358413806,1745097516845,-150.0,0.00054795,80]
[358413807,1745097516877,-150.0,0.00054795,120]
[358413808,1745097516912,-150.0,0.00054795,120]
[358413809,1745097516948,-150.0,0.00054795,120]
[358413810,1745097516981,-150.0,0.00054795,120]
[358413811,1745097517015,-150.0,0.00054795,120]
[358413812,1745097517049,-150.60139259,0.00054795,120]
[358413813,1745097517082,-214.02184607,0.00054795,120]
[358413814,1745097517117,-1485.25656667,0.000548,120]
[358413815,1745097517151,-1957.31,0.00054821,120]
[358413816,1745097517185,-500.0,0.0005485,120]
[358413817,1745097517220,-500.0,0.0005485,120]
[358413818,1745097517253,-150.0,0.0005485,120]
[358413819,1745097517288,-199.04493941,0.0005485,120]
[358413820,1745097517320,-150.0,0.0005485,120]
[358413821,1745097517353,-150.0,0.0005485,80]
[358413822,1745097517390,-150.0,0.0005485,120]
[358413823,1745097517429,-150.0,0.0005485,120]
[358413824,1745097517463,-150.0,0.0005485,120]
[358413825,1745097517497,-150.0,0.0005485,120]
[358413826,1745097517529,-150.0,0.0005485,120]
[358413827,1745097517564,-500.0,0.00054905,120]
[358413828,1745097517598,-500.0,0.00054905,120]
[358413829,1745097517631,-200.0,0.00054905,120]
[358413830,1745097517666,-200.0,0.00054905,120]
[358413831,1745097517701,-150.0,0.00054905,80]
[358413832,1745097517735,-150.0,0.00054905,120]
[358413833,1745097517769,-200.0,0.00054905,120]
[358413834,1745097517801,-200.0,0.00054905,120]
[358413835,1745097517835,-200.0,0.00054905,120]
[358413836,1745097517871,-200.0,0.00054905,120]
[358413837,1745097517903,-246.88757319,0.00054955,120]
[358413838,1745097517936,-500.0,0.00054959,120]
[358413839,1745097517972,-386.0,0.00054959,120]
[358413840,1745097518005,-247.86523391,0.00054959,80]
[358413841,1745097518040,-150.0,0.00054959,120]
[358413842,1745097518073,-2023308.03429634,0.00055,120]
[358413843,1745097520382,245.941,0.00039896,56]
[358413844,1745097520939,850.50740732,0.0002,4]
[358413845,1745097576734,-19062.34,0.000494,60]
[358413846,1745097576779,-5562.0,0.000509,120]
[358413847,1745097576818,-5562.0,0.000519,120]
[358413848,1745097576858,-19062.34,0.000543,60]
[358413849,1745097576894,-1081.46,0.00054794,120]
[358413850,1745097576928,-1117.38,0.00054794,120]
[358413851,1745097577114,-303.84780114,0.00054794,120]
[358413852,1745097577151,-500.0,0.00054794,120]
[358413853,1745097577186,-500.0,0.00054794,120]
[358413854,1745097577220,-500.0,0.00054794,120]
[358413855,1745097577254,-500.0,0.00054794,120]
[358413856,1745097577288,-559.91,0.00054794,120]
[358413857,1745097577321,-500.0,0.00054794,120]
[358413858,1745097577354,-500.0,0.00054794,120]
[358413859,1745097577388,-316.81663092,0.00054794,120]
[358413860,1745097577423,-500.0,0.00054794,120]
[358413861,1745097577462,-500.0,0.00054794,120]
[358413862,1745097577497,-500.0,0.00054794,120]
[358413863,1745097577530,-500.0,0.00054794,120]
[358413864,1745097577565,-510.37164043,0.00054794,120]
[358413865,1745097577601,-496.0209,0.00054794,120]
[358413866,1745097577637,-500.0,0.00054794,120]
[358413867,1745097577674,-500.0,0.00054794,120]
[358413868,1745097577712,-500.0,0.00054794,120]
[358413869,1745097577750,-500.0,0.00054794,120]
[358413870,1745097577786,-500.0,0.00054794,120]
[358413871,1745097577821,-400.0,0.00054794,120]
[358413872,1745097577858,-580.79882275,0.00054794,120]
[358413873,1745097577898,-500.0,0.00054794,120]
[358413874,1745097577939,-300.13760425,0.00054794,118]
[358413875,1745097577975,-500.0,0.00054794,120]
[358413876,1745097578010,-500.0,0.00054794,120]
[358413877,1745097578046,-500.0,0.00054794,120]
[358413878,1745097578081,-500.0,0.00054794,120]
[358413879,1745097578115,-500.0,0.00054794,120]
[358413880,1745097578154,-500.0,0.00054794,120]
[358413881,1745097578188,-500.0,0.00054794,120]
[358413882,1745097578224,-500.0,0.00054794,120]
[358413883,1745097578259,-500.0,0.00054794,120]
[358413884,1745097578295,-500.0,0.00054794,120]
[358413885,1745097578332,-500.0,0.00054794,120]
[358413886,1745097578368,-636.2,0.00054794,120]
[358413887,1745097578403,-500.0,0.00054794,120]
[358413888,1745097578442,-500.0,0.00054794,120]
[358413889,1745097578480,-575.17,0.00054794,120]
[358413890,1745097578515,-505.15,0.00054794,120]
[358413891,1745097578557,-500.0,0.00054794,120]
[358413892,1745097578600,-500.0,0.00054794,120]
[358413893,1745097578636,-541.17980642,0.00054794,120]
[358413894,1745097578672,-500.0,0.00054794,120]
[358413895,1745097578708,-500.0,0.00054794,120]
[358413896,1745097578746,-500.0,0.00054794,120]
[358413897,1745097578782,-550.39377003,0.00054794,120]
[358413898,1745097578821,-500.0,0.00054794,120]
[358413899,1745097578995,-542.70000219,0.00054794,120]
[358413900,1745097579034,-500.0,0.00054794,120]
[358413901,1745097579072,-500.0,0.00054794,120]
[358413902,1745097579113,-500.0,0.00054794,120]
[358413903,1745097579150,-500.0,0.00054794,120]
[358413904,1745097579185,-500.0,0.00054794,120]
[358413905,1745097579223,-500.0,0.00054794,120]
[358413906,1745097579261,-500.0,0.00054794,120]
[358413907,1745097579301,-500.0,0.00054794,120]
[358413908,1745097579338,-500.0,0.00054794,120]
[358413909,1745097579375,-508.79837233,0.00054794,120]
[358413910,1745097579415,-500.0,0.00054794,120]
[358413911,1745097579453,-500.0,0.00054794,120]
[358413912,1745097579491,-796.44,0.00054794,120]
[358413913,1745097579533,-500.0,0.00054794,120]
[358413914,1745097579569,-541.82747138,0.00054794,120]
[358413915,1745097579604,-500.0,0.00054794,120]
[358413916,1745097579641,-500.0,0.00054794,120]
[358413917,1745097579678,-500.0,0.00054794,120]
[358413918,1745097579715,-500.0,0.00054794,120]
[358413919,1745097579752,-500.0,0.00054794,120]
[358413920,1745097579788,-500.0,0.00054794,120]
[358413921,1745097579824,-584.92478713,0.00054794,120]
[358413922,1745097579859,-500.0,0.00054794,120]
[358413923,1745097579896,-500.0,0.00054794,120]
[358413924,1745097579930,-500.0,0.00054794,120]
[358413925,1745097579965,-572.39,0.00054794,120]
[358413926,1745097580000,-1902.97,0.000548,60]
[358413927,1745097580035,-1627832.15125169,0.00055,120]
[358413928,1745097580070,-1000.0,0.00055,120]
[358413929,1745097580104,-854.0,0.00055,120]
[358413930,1745097580139,-200.0,0.00055,100]
[358413931,1745097580173,-2573.21897196,0.00055,56]
[358413932,1745097580210,-178.04034395,0.00055,120]
[358413933,1745097580247,-5705.14738705,0.00055,30]
[358413934,1745097580284,-150.0,0.0005527,120]
[358413935,1745097580322,-150.0,0.0005584,120]
[358413936,1745097580357,-19062.34,0.000559,60]
[358413937,1745097580392,-150.0,0.0005599,120]
[358413938,1745097580429,-200.0,0.00056,104]
[358413939,1745097580466,-157.13,0.00056164,120]
[358413940,1745097580501,-1032.47397193,0.0005666,120]
[358413941,1745097580539,-200.0,0.00057,108]
[358413942,1745097580575,-171.42771428,0.00057288,120]
[358413943,1745097580610,-245.942,0.00057422,112]
[358413944,1745097580644,-19062.34,0.000575,60]
[358413945,1745097580678,-500.0,0.00057534,120]
[358413946,1745097580796,-527.96756943,0.00057534,120]